bitfinex/quotes_SOLUSD_20250508
["timestamp","ask_amount","ask_price","bid_price","bid_amount"]
[1746667024766,143.51373466,148.95,148.93,22.32895632]
[1746667025094,143.51373466,148.95,148.94,22.32895632]
[1746667025288,18.37477321,148.98,148.94,22.32895632]
[1746667025289,6.71338531,148.96,148.94,22.32895632]
[1746667025586,23.49641431,148.96,148.89,48.32895632]
[1746667025778,159.12895632,148.95,148.89,26.0]
[1746667025974,22.32895632,148.94,148.9,22.32895632]
[1746667026177,159.12895632,148.95,148.91,22.32895632]
[1746667026589,6.71411306,148.94,148.91,22.32895632]
[1746667026972,155.44964886,148.93,148.87,26.0]
[1746667027172,136.8,148.92,148.89,22.32895632]
[1746667028472,136.8,148.92,148.9,22.32895632]
[1746667028713,6.71546571,148.91,148.9,22.32895632]
[1746667029573,143.51516096,148.92,148.9,22.32895632]
[1746667029978,160.30269789,148.92,148.89,22.32895632]
[1746667030498,143.51516096,148.92,148.91,22.32895632]
[1746667030699,136.8,148.92,148.91,22.32895632]
[1746667031005,143.51501477,148.92,148.91,22.32895632]
[1746667031184,143.51501477,148.92,148.9,22.32895632]
[1746667031387,143.51501477,148.92,148.91,22.32895632]
[1746667033001,143.51501477,148.92,148.87,26.0]
[1746667033198,143.51501477,148.92,148.9,22.32895632]
[1746667033373,143.51501477,148.92,148.91,22.32895632]
[1746667034582,143.51501477,148.92,148.87,26.0]
[1746667034583,143.51501477,148.92,148.89,22.32895632]
[1746667034802,143.51501477,148.92,148.87,26.0]
[1746667034990,143.51501477,148.92,148.89,22.32895632]
[1746667035799,143.51501477,148.92,148.9,22.32895632]
[1746667035985,143.51501477,148.92,148.91,22.32895632]
[1746667036181,143.51501477,148.92,148.89,22.32895632]
[1746667036703,136.8,148.92,148.9,22.32895632]
[1746667036919,136.8,148.92,148.91,22.32895632]
[1746667037483,6.71377236,148.95,148.91,22.32895632]
[1746667037722,143.51331914,148.96,148.94,22.32895632]
[1746667038003,143.51331914,148.96,148.93,22.32895632]
[1746667038506,143.51331914,148.96,148.94,22.32895632]
[1746667039609,143.51331914,148.96,148.93,22.32895632]
[1746667040893,143.51331914,148.96,148.94,22.32895632]
[1746667041600,143.51331914,148.96,148.93,22.32895632]
[1746667041802,136.8,148.96,148.95,22.32895632]
[1746667042707,29.04190321,148.97,148.91,26.0]
[1746667042907,165.84190321,148.97,148.93,22.32895632]
[1746667043822,182.6238056,148.97,148.93,22.32895632]
[1746667044024,182.6238056,148.97,148.91,26.0]
[1746667044314,160.29484928,148.97,148.94,22.32895632]
[1746667044710,143.51294689,148.97,148.94,22.32895632]
[1746667045205,143.51294689,148.97,148.95,22.32895632]
[1746667045511,136.8,148.97,148.96,22.32895632]
[1746667045816,155.56,149.01,148.96,22.32895632]
[1746667045981,143.51111906,149.01,149.0,22.32895632]
[1746667046320,6.71005837,149.03,149.0,22.32895632]
[1746667046488,6.71005837,149.03,148.97,26.14216157]
[1746667046489,6.71005837,149.03,149.02,22.32895632]
[1746667046851,18.76,149.06,149.02,22.32895632]
[1746667046995,18.76,149.06,148.97,34.19876157]
[1746667046996,6.70825786,149.07,149.04,22.32895632]
[1746667047198,29.03721418,149.07,148.97,34.19876157]
[1746667047513,40.97860518,149.06,148.97,34.19876157]
[1746667047679,23.47890252,149.07,148.97,34.0566]
[1746667047885,6.709158,149.05,149.02,22.32895632]
[1746667048079,6.709158,149.05,148.99,26.0]
[1746667048080,45.81100932,149.05,149.0,22.32895632]
[1746667048302,23.482053,149.05,149.0,22.32895632]
[1746667048506,45.81100932,149.05,149.0,22.32895632]
[1746667049014,45.81100932,149.05,149.01,22.32895632]
[1746667049188,45.81100932,149.05,148.99,26.0]
[1746667049394,136.8,149.04,149.01,22.32895632]
[1746667049709,136.8,149.04,148.99,26.0]
[1746667049916,6.71005837,149.03,149.0,22.32895632]
[1746667050418,6.71005837,149.03,148.99,26.0]
[1746667050638,6.71005837,149.03,149.01,22.32895632]
[1746667051923,6.71005837,149.03,148.99,26.0]
[1746667052140,6.71005837,149.03,149.01,22.32895632]
[1746667052522,136.8,149.02,148.98,22.32895632]
[1746667053833,6.71095899,149.01,148.98,22.32895632]
[1746667055251,22.32895632,149.0,148.92,6.71500772]
[1746667055539,159.12895632,149.0,148.95,22.32895632]
[1746667055713,136.8,148.99,148.91,18.76]
[1746667055908,6.71231037,148.98,148.95,22.32895632]
[1746667056108,6.71231037,148.98,148.96,22.32895632]
[1746667056530,6.71231037,148.98,148.95,22.32895632]
[1746667057042,6.71231037,148.98,148.96,22.32895632]
[1746667057623,136.8,148.99,148.97,22.32895632]
[1746667058135,143.51192975,148.99,148.98,22.32895632]
[1746667058331,6.71192975,148.99,148.98,22.32895632]
[1746667058843,6.71095899,149.01,148.98,22.32895632]
[1746667059216,22.32895632,149.06,149.0,22.32895632]
[1746667059415,40.97860518,149.04,148.99,22.32895632]
[1746667059817,26.0,149.07,148.99,22.32895632]
[1746667059818,22.32895632,149.03,148.99,22.32895632]
[1746667060133,40.97860518,149.04,148.99,22.32895632]
[1746667060333,18.64964886,149.04,149.0,22.32895632]
[1746667060639,40.97860518,149.04,148.99,22.32895632]
[1746667060819,22.32895632,149.03,148.99,22.32895632]
[1746667061150,40.97860518,149.04,148.99,22.32895632]
[1746667061353,40.97860518,149.04,148.96,22.32895632]
[1746667061652,18.64964886,149.04,149.0,22.32895632]
[1746667062143,6.71005837,149.03,149.01,22.32895632]
[1746667062650,6.71005837,149.03,149.0,22.32895632]
[1746667062940,23.48520431,149.03,149.0,22.32895632]
[1746667063320,23.48520431,149.03,148.97,6.3718]
[1746667063520,45.81416063,149.03,148.99,22.32895632]
[1746667063721,23.48520431,149.03,148.99,22.32895632]
[1746667064137,45.81416063,149.03,148.99,22.32895632]
[1746667064854,22.32895632,149.0,148.92,1.5899]
[1746667065034,159.12895632,148.99,148.9,6.71575761]
[1746667065237,159.12895632,148.99,148.94,22.32895632]
[1746667065238,22.32895632,148.98,148.94,22.32895632]
[1746667065442,159.12895632,148.99,148.94,22.32895632]
[1746667065835,159.12895632,148.99,148.9,6.71575761]
[1746667066060,159.12895632,148.99,148.95,22.32895632]
[1746667066358,6.71276095,148.97,148.95,22.32895632]
[1746667067334,6.71276095,148.97,148.96,22.32895632]
[1746667067534,143.51245828,148.98,148.96,22.32895632]
[1746667067730,6.71095899,149.01,148.97,22.32895632]
[1746667067945,6.71095899,149.01,149.0,22.32895632]
[1746667068434,6.71095899,149.01,148.96,22.32895632]
[1746667068642,6.71095899,149.01,149.0,22.32895632]
[1746667068966,64.46696166,149.01,148.97,22.32895632]
[1746667069263,64.46696166,149.01,148.96,22.32895632]
[1746667069264,18.64964886,148.99,148.96,22.32895632]
[1746667069447,22.32895632,148.98,148.9,8.1344]
[1746667069632,159.12895632,148.98,148.91,26.0]
[1746667069838,136.8,148.98,148.94,22.32895632]
[1746667070142,136.8,148.97,148.91,26.0]
[1746667070343,6.7132116,148.96,148.94,22.32895632]
[1746667070856,143.51295676,148.97,148.95,22.32895632]
[1746667071231,143.51295676,148.97,148.94,22.32895632]
[1746667072856,143.51295676,148.97,148.91,32.71544762]
[1746667073062,143.51295676,148.97,148.94,22.32895632]
[1746667074135,160.29485915,148.97,148.93,22.32895632]
[1746667074340,182.62381547,148.97,148.92,26.0]
[1746667074535,18.64964886,148.94,148.86,26.9571]
[1746667074755,136.8,148.93,148.92,22.32895632]
[1746667076449,136.8,148.97,148.92,22.32895632]
[1746667076657,136.8,148.97,148.96,22.32895632]
[1746667076658,143.51292293,148.97,148.96,22.32895632]
[1746667077660,143.51292293,148.97,148.95,22.32895632]
[1746667077862,143.51292293,148.97,148.89,48.32895632]
[1746667078159,177.77860518,148.96,148.92,22.32895632]
[1746667078362,6.71411306,148.94,148.92,22.32895632]
[1746667079168,23.49939572,148.94,148.86,8.2571]
[1746667079358,136.8,148.93,148.91,22.32895632]
[1746667079671,136.8,148.93,148.88,26.0]
[1746667079959,136.8,148.92,148.86,1.6341]
[1746667080269,6.71546571,148.91,148.83,12.83178716]
[1746667080451,136.8,148.9,148.88,22.32895632]
[1746667081043,136.8,148.9,148.89,22.32895632]
[1746667081651,136.8,148.9,148.89,44.65791264]
[1746667081945,136.8,148.9,148.89,22.32895632]
[1746667082159,8.22449151,148.94,148.89,44.65791264]
[1746667082341,6.71429151,148.94,148.93,22.32895632]
[1746667082871,155.5,148.95,148.93,22.32895632]
[1746667083043,136.8,148.95,148.94,22.32895632]
[1746667083247,32.71293463,148.97,148.94,22.32895632]
[1746667083450,169.51293463,148.97,148.94,22.32895632]
[1746667084769,186.29483702,148.97,148.94,22.32895632]
[1746667085340,136.8,148.96,148.95,22.32895632]
[1746667085863,136.8,149.0,148.95,70.65791264]
[1746667086073,6.71095899,149.01,148.99,22.32895632]
[1746667086361,6.71095899,149.01,148.95,26.0]
[1746667086569,160.28835648,149.01,148.98,22.32895632]
[1746667086767,160.28835648,149.01,148.95,26.0]
[1746667086768,18.64964886,148.98,148.94,22.32895632]
[1746667086934,136.8,148.97,148.94,22.32895632]
[1746667087762,136.8,148.97,148.91,26.0]
[1746667087971,136.8,148.97,148.89,29.04506543]
[1746667087972,136.8,148.96,148.92,22.32895632]
[1746667088140,136.8,148.96,148.93,22.32895632]
[1746667088344,136.8,148.96,148.94,22.32895632]
[1746667088679,143.51340763,148.96,148.95,22.32895632]
[1746667089165,6.71279346,148.97,148.95,22.32895632]
[1746667089470,6.71279346,148.97,148.96,22.32895632]
[1746667089664,6.71185985,148.99,148.96,22.32895632]
[1746667089969,6.71185985,148.99,148.98,22.32895632]
[1746667090156,6.71185985,148.99,148.97,22.32895632]
[1746667091057,23.49150949,148.99,148.97,22.32895632]
[1746667091575,6.71185985,148.99,148.97,22.32895632]
[1746667092775,23.49150949,148.99,148.96,22.32895632]
[1746667093271,18.64964886,148.98,148.92,26.0]
[1746667093570,136.8,148.97,148.95,22.32895632]
[1746667094068,136.8,148.97,148.96,22.32895632]
[1746667095550,136.8,148.97,148.96,51.37112424]
[1746667095872,18.7,149.02,148.96,51.37112424]
[1746667096047,136.8,149.03,149.01,22.32895632]
[1746667096249,143.51005837,149.03,149.02,22.32895632]
[1746667096451,136.8,149.03,149.02,22.32895632]
[1746667098488,143.51005837,149.03,148.96,22.32895632]
[1746667098779,143.51005837,149.03,148.94,8.19856157]
[1746667098780,136.8,149.02,148.98,22.32895632]
[1746667099151,6.71095899,149.01,148.99,22.32895632]
[1746667099579,6.71095899,149.01,148.98,22.32895632]
[1746667099879,6.71095899,149.01,148.94,1.5904]
[1746667099880,45.8173128,149.01,148.94,1.5904]
[1746667100175,159.12895632,149.0,148.95,22.32895632]
[1746667100359,136.8,149.0,148.98,22.32895632]
[1746667100953,136.8,149.0,148.97,22.32895632]
[1746667101470,6.71185985,148.99,148.97,22.32895632]
[1746667101672,6.71185985,148.99,148.98,22.32895632]
[1746667102278,6.71050865,149.02,148.98,22.32895632]
[1746667102577,6.71050865,149.02,148.99,22.32895632]
[1746667103172,6.71050865,149.02,148.96,22.32895632]
[1746667103374,6.71050865,149.02,149.01,22.32895632]
[1746667103755,6.71005837,149.03,149.01,22.32895632]
[1746667103961,6.71005837,149.03,149.02,22.32895632]
[1746667106476,6.71005837,149.03,148.97,6.71259192]
[1746667106661,6.71005837,149.03,149.02,22.32895632]
[1746667106976,6.71005837,149.03,148.96,55.93335632]
[1746667106977,6.71005837,149.03,149.01,22.32895632]
[1746667107275,25.35970723,149.03,148.99,22.32895632]
[1746667107479,136.8,149.02,148.98,22.32895632]
[1746667107682,136.8,149.02,148.99,22.32895632]
[1746667108271,6.71095899,149.01,148.99,22.32895632]
[1746667108581,6.71095899,149.01,149.0,22.32895632]
[1746667108757,143.51052678,149.02,149.0,22.32895632]
[1746667108954,136.8,149.02,149.01,22.32895632]
[1746667109483,143.51050865,149.02,149.01,22.32895632]
[1746667109660,143.51050865,149.02,149.0,22.32895632]
[1746667110280,143.51050865,149.02,149.01,22.32895632]
[1746667110466,143.51050865,149.02,148.97,6.71265735]
[1746667110763,143.51050865,149.02,149.01,22.32895632]
[1746667111258,6.709158,149.05,149.01,22.32895632]
[1746667111452,6.709158,149.05,149.04,22.32895632]
[1746667111670,6.709158,149.05,149.03,22.32895632]
[1746667111879,178.16895632,149.07,149.03,22.32895632]
[1746667111880,18.64,149.07,149.03,22.32895632]
[1746667112151,22.32895632,149.06,149.01,22.32895632]
[1746667112382,6.70960815,149.04,149.01,22.32895632]
[1746667113283,18.64964886,149.08,149.03,22.32895632]
[1746667113284,6.7087079,149.06,149.03,22.32895632]
[1746667113659,6.7087079,149.06,149.04,22.32895632]
[1746667113854,6.70793635,149.08,149.05,22.32895632]
[1746667115255,6.70793635,149.08,149.04,22.32895632]
[1746667115655,6.70793635,149.08,149.05,22.32895632]
[1746667116754,16.76315717,149.14,149.07,22.32895632]
[1746667116968,39.09211349,149.14,149.09,22.32895632]
[1746667117174,159.52895632,149.13,149.08,22.32895632]
[1746667117364,22.32895632,149.12,149.07,22.32895632]
[1746667117681,22.32895632,149.11,149.06,22.32895632]
[1746667118067,22.32895632,149.11,149.07,22.32895632]
[1746667118383,6.70690811,149.1,149.07,22.32895632]
[1746667120077,22.32895632,149.09,149.05,22.32895632]
[1746667120277,22.32895632,149.09,149.04,48.32895632]
[1746667120278,6.70780788,149.08,149.04,48.32895632]
[1746667120585,6.70780788,149.08,149.05,22.32895632]
[1746667120881,6.70780788,149.08,149.06,22.32895632]
[1746667121578,6.70735797,149.09,149.05,22.32895632]
[1746667121775,29.03631429,149.09,149.05,22.32895632]
[1746667122082,45.80470921,149.09,149.05,22.32895632]
[1746667122390,22.32895632,149.08,149.04,22.32895632]
[1746667122568,23.47575289,149.09,149.05,22.32895632]
[1746667122770,45.80470921,149.09,149.05,22.32895632]
[1746667123185,22.32895632,149.08,149.04,22.32895632]
[1746667123889,6.70825786,149.07,149.04,22.32895632]
[1746667124696,22.32895632,149.06,149.01,22.32895632]
[1746667124880,22.32895632,149.05,149.01,22.32895632]
[1746667125201,22.32895632,149.06,149.01,22.32895632]
[1746667125897,22.32895632,149.03,149.0,26.0]
[1746667126199,137.2,149.08,148.96,6.0518]
[1746667126200,22.32895632,149.02,148.96,6.0518]
[1746667126408,22.32895632,149.0,148.96,48.32895632]
[1746667126613,22.32895632,149.0,148.96,26.0]
[1746667126782,22.32895632,149.0,148.96,48.32895632]
[1746667127092,22.32895632,149.0,148.96,22.32895632]
[1746667127298,22.32895632,148.99,148.95,22.32895632]
[1746667127490,22.32895632,148.98,148.93,26.0]
[1746667127698,22.32895632,148.97,148.93,22.32895632]
[1746667127992,6.7132116,148.96,148.93,22.32895632]
[1746667128205,6.7132116,148.96,148.93,48.32895632]
[1746667128384,6.7132116,148.96,148.93,22.32895632]
[1746667129198,6.7132116,148.96,148.93,48.32895632]
[1746667129426,6.71291359,148.97,148.94,22.32895632]
[1746667129900,143.91249913,148.98,148.94,22.32895632]
[1746667130410,137.2,148.98,148.95,22.32895632]
[1746667130699,137.2,148.98,148.97,22.32895632]
[1746667130904,167.03,148.98,148.97,22.32895632]
[1746667131900,167.03,148.98,148.96,22.32895632]
[1746667132402,143.91234631,148.98,148.95,22.32895632]
[1746667132777,137.2,148.98,148.96,22.32895632]
[1746667132979,22.32895632,149.01,148.96,22.32895632]
[1746667133189,155.76,149.02,148.97,22.32895632]
[1746667133388,6.71104855,149.01,148.96,22.32895632]
[1746667133594,22.32895632,148.99,148.95,22.32895632]
[1746667133889,29.04126669,148.98,148.93,26.0]
[1746667134090,29.04126669,148.98,148.93,48.32895632]
[1746667134490,22.32895632,148.97,148.93,48.32895632]
[1746667135000,22.32895632,148.96,148.93,26.0]
[1746667135297,22.32895632,148.97,148.93,26.0]
[1746667135502,22.32895632,148.97,148.93,48.32895632]
[1746667135882,6.7132116,148.96,148.93,26.0]
[1746667137196,6.7132116,148.96,148.93,48.32895632]
[1746667137607,6.71283504,148.97,148.95,22.32895632]
[1746667137812,178.17860518,148.96,148.87,26.7964745]
[1746667137988,6.71411306,148.94,148.89,22.32895632]
[1746667138187,22.32895632,148.93,148.89,22.32895632]
[1746667138602,22.32895632,148.92,148.88,48.32895632]
[1746667139286,22.32895632,148.93,148.88,48.32895632]
[1746667139481,22.32895632,148.92,148.87,22.32895632]
[1746667139710,22.32895632,148.92,148.88,22.32895632]
[1746667140082,29.0440054,148.92,148.88,22.32895632]
[1746667140518,166.24369917,148.93,148.89,22.32895632]
[1746667140723,137.2,148.93,148.89,22.32895632]
[1746667141102,137.2,148.93,148.91,22.32895632]
[1746667141304,29.83,148.92,148.91,22.32895632]
[1746667141812,29.83,148.92,148.9,22.32895632]
[1746667142314,29.83,148.92,148.91,22.32895632]
[1746667143429,137.2,148.93,148.91,22.32895632]
[1746667143731,137.2,148.93,148.92,22.32895632]
[1746667145431,137.2,148.97,148.92,29.04397109]
[1746667145644,137.2,148.97,148.93,22.32895632]
[1746667145931,29.83,148.94,148.93,22.32895632]
[1746667146316,137.2,148.97,148.94,6.71411306]
[1746667146497,137.2,148.97,148.96,22.32895632]
[1746667146699,29.83,148.95,148.94,22.32895632]
[1746667146947,29.83,148.95,148.93,22.32895632]
[1746667147828,29.83,148.95,148.94,22.32895632]
[1746667148134,29.83,148.95,148.9,6.85807829]
[1746667148341,29.83,148.95,148.94,22.32895632]
[1746667148948,137.2,148.97,148.94,22.32895632]
[1746667149121,137.2,148.97,148.95,22.32895632]
[1746667149615,143.91278202,148.97,148.9,6.71591672]
[1746667149942,143.91278202,148.97,148.94,22.32895632]
[1746667150143,137.2,148.97,148.94,22.32895632]
[1746667150324,143.91287772,148.97,148.95,22.32895632]
[1746667150837,137.2,148.97,148.95,22.32895632]
[1746667151039,143.91281546,148.97,148.95,22.32895632]
[1746667151646,143.91281546,148.97,148.94,22.32895632]
[1746667151820,143.91281546,148.97,148.93,22.32895632]
[1746667152440,22.32895632,148.96,148.92,22.32895632]
[1746667152949,166.24177178,148.97,148.92,22.32895632]
[1746667153622,143.91281546,148.97,148.92,22.32895632]
[1746667153941,166.24177178,148.97,148.92,22.32895632]
[1746667155241,166.24177178,148.97,148.9,6.71573141]
[1746667155442,166.24177178,148.97,148.92,22.32895632]
[1746667155843,166.24177178,148.97,148.9,6.71573141]
[1746667155844,22.32895632,148.95,148.9,22.32895632]
[1746667156039,137.2,148.96,148.89,48.32895632]
[1746667156040,22.32895632,148.94,148.89,48.32895632]
[1746667156340,22.32895632,148.9,148.85,22.32895632]
[1746667156543,6.71636778,148.89,148.85,22.32895632]
[1746667157048,6.71636778,148.89,148.84,32.71861754]
[1746667157245,6.71636778,148.89,148.85,22.32895632]
[1746667158047,22.32895632,148.87,148.81,20.133]
[1746667158265,143.91636778,148.89,148.8,6.2118]
[1746667158266,22.32895632,148.86,148.8,6.2118]
[1746667158565,6.71862402,148.84,148.81,48.32895632]
[1746667158922,6.71862402,148.84,148.81,22.32895632]
[1746667159136,29.04758034,148.84,148.79,22.32895632]
[1746667159347,29.04758034,148.84,148.79,48.32895632]
[1746667159729,29.04758034,148.84,148.79,26.0]
[1746667160049,29.04758034,148.84,148.79,48.32895632]
[1746667160744,22.32895632,148.83,148.79,22.32895632]
[1746667160926,22.32895632,148.83,148.78,22.32895632]
[1746667160927,22.32895632,148.82,148.78,22.32895632]
[1746667161127,137.2,148.83,148.8,22.32895632]
[1746667163154,166.24831089,148.83,148.78,26.0]
[1746667163360,22.32895632,148.82,148.78,48.32895632]
[1746667163541,143.91935457,148.83,148.78,48.32895632]
[1746667163744,166.24831089,148.83,148.78,48.32895632]
[1746667166452,166.24831089,148.83,148.79,22.32895632]
[1746667166656,22.32895632,148.82,148.77,22.32895632]
[1746667167153,22.32895632,148.82,148.78,22.32895632]
[1746667167350,143.91935457,148.83,148.78,22.32895632]
[1746667167654,166.24831089,148.83,148.79,22.32895632]
[1746667167846,137.2,148.82,148.79,22.32895632]
[1746667169141,137.2,148.82,148.8,22.32895632]
[1746667169861,137.2,148.82,148.81,22.32895632]
[1746667170164,29.83,148.82,148.81,22.32895632]
[1746667171062,143.91832236,148.85,148.81,22.32895632]
[1746667171239,143.91832236,148.85,148.82,22.32895632]
[1746667172160,166.24727868,148.85,148.81,22.32895632]
[1746667172466,143.91832236,148.85,148.81,22.32895632]
[1746667174359,143.91832236,148.85,148.8,6.72028209]
[1746667174543,143.91832236,148.85,148.82,22.32895632]
[1746667176441,166.24727868,148.85,148.81,22.32895632]
[1746667177669,143.91832236,148.85,148.82,22.32895632]
[1746667179460,143.91832236,148.85,148.81,22.32895632]
[1746667180749,143.91822916,148.85,148.82,22.32895632]
[1746667181453,143.91822916,148.85,148.77,16.80446326]
[1746667181454,137.2,148.85,148.83,22.32895632]
[1746667182484,143.91819792,148.85,148.82,22.32895632]
[1746667182771,22.32895632,148.84,148.79,48.32895632]
[1746667183342,22.32895632,148.83,148.79,48.32895632]
[1746667183539,6.71952694,148.82,148.79,48.32895632]
[1746667184559,6.71952694,148.82,148.8,22.32895632]
[1746667185970,6.71952694,148.82,148.79,26.0]
[1746667185971,6.71952694,148.82,148.79,22.32895632]
[1746667186177,29.04848326,148.82,148.78,22.32895632]
[1746667186763,137.2,148.81,148.78,22.32895632]
[1746667187675,137.2,148.81,148.77,48.32895632]
[1746667188381,6.7204301,148.8,148.77,48.32895632]
[1746667188779,6.7204301,148.8,148.78,22.32895632]
[1746667189511,6.7204301,148.8,148.72,0.14216157]
[1746667189669,29.04938642,148.8,148.76,22.32895632]
[1746667189868,29.04938642,148.8,148.75,22.32895632]
[1746667190169,29.04938642,148.8,148.76,22.32895632]
[1746667191577,6.7204301,148.8,148.76,22.32895632]
[1746667192770,6.72223716,148.76,148.72,22.32895632]
[1746667193093,22.32895632,148.75,148.71,22.32895632]
[1746667193977,183.05678638,148.76,148.72,22.32895632]
[1746667194286,183.05678638,148.76,148.69,26.0]
[1746667194473,159.52895632,148.75,148.7,22.32895632]
[1746667194985,36.55314105,148.74,148.7,22.32895632]
[1746667195189,29.83,148.74,148.72,22.32895632]
[1746667195371,29.83,148.74,148.73,22.32895632]
[1746667195781,29.83,148.74,148.73,22.47111789]
[1746667195978,18.44,148.79,148.73,48.47111789]
[1746667196168,18.44,148.79,148.77,22.32895632]
[1746667196580,137.2,148.82,148.78,22.32895632]
[1746667196780,137.2,148.82,148.75,22.32895632]
[1746667197018,143.91972181,148.82,148.78,22.32895632]
[1746667198296,166.24867813,148.82,148.78,22.32895632]
[1746667198475,143.91972181,148.82,148.78,22.32895632]
[1746667198668,166.24867813,148.82,148.78,22.32895632]
[1746667199472,183.04749549,148.82,148.78,22.32895632]
[1746667199673,18.64964886,148.79,148.72,7.6546]
[1746667199878,158.92895632,148.78,148.69,6.72529792]
[1746667200174,136.6,148.77,148.73,22.32895632]
[1746667200372,136.6,148.77,148.76,22.32895632]
[1746667200578,136.6,148.79,148.76,22.32895632]
[1746667200816,177.57860518,148.81,148.76,22.32895632]
[1746667201006,22.32895632,148.8,148.76,22.32895632]
[1746667201518,6.72088177,148.79,148.71,32.72411028]
[1746667201697,29.04983809,148.79,148.75,22.32895632]
[1746667201884,143.32088177,148.79,148.76,22.32895632]
[1746667202084,6.72088177,148.79,148.76,22.32895632]
[1746667202416,136.6,148.8,148.78,22.32895632]
[1746667202597,143.32023354,148.81,148.78,22.32895632]
[1746667202800,143.32023354,148.81,148.75,22.32895632]
[1746667202801,6.72023354,148.81,148.79,22.32895632]
[1746667203120,6.71964733,148.82,148.79,22.32895632]
[1746667205422,6.71964733,148.82,148.8,22.32895632]
[1746667205801,6.71907545,148.83,148.8,22.32895632]
[1746667206200,29.04803177,148.83,148.79,22.32895632]
[1746667206901,6.71907545,148.83,148.79,22.32895632]
[1746667207112,29.04803177,148.83,148.79,22.32895632]
[1746667208427,6.71907545,148.83,148.79,22.32895632]
[1746667208731,6.71907545,148.83,148.8,22.32895632]
[1746667209190,6.71907545,148.83,148.82,22.32895632]
[1746667210619,143.31880418,148.84,148.82,22.32895632]
[1746667210823,136.6,148.87,148.83,22.32895632]
[1746667211031,6.0952,148.92,148.86,22.32895632]
[1746667211032,6.71636778,148.89,148.86,22.32895632]
[1746667211327,136.6,148.9,148.88,22.32895632]
[1746667211498,143.31597717,148.9,148.88,22.32895632]
[1746667211696,143.31597717,148.9,148.86,22.32895632]
[1746667211896,165.64493349,148.9,148.86,22.32895632]
[1746667212120,22.32895632,148.88,148.84,22.32895632]
[1746667212320,6.7172701,148.87,148.84,22.32895632]
[1746667212509,29.04622642,148.87,148.82,26.0]
[1746667212712,6.7172701,148.87,148.83,22.32895632]
[1746667213025,6.7172701,148.87,148.84,22.32895632]
[1746667213902,6.71694492,148.88,148.86,22.32895632]
[1746667214105,136.6,148.92,148.87,22.32895632]
[1746667214319,143.31516486,148.92,148.9,22.32895632]
[1746667214832,136.6,148.92,148.91,22.32895632]
[1746667215132,6.7136623,148.95,148.91,22.32895632]
[1746667215328,136.6,148.96,148.94,22.32895632]
[1746667215505,6.7128904,148.97,148.95,22.32895632]
[1746667215919,6.7128904,148.97,148.92,26.0]
[1746667215920,6.7128904,148.97,148.96,22.32895632]
[1746667216107,6.7128904,148.97,148.95,22.32895632]
[1746667216932,6.7128904,148.97,148.92,22.32895632]
[1746667216933,45.82374911,148.97,148.92,22.32895632]
[1746667217107,22.32895632,148.94,148.9,48.32895632]
[1746667217300,136.6,148.95,148.91,22.32895632]
[1746667217501,136.6,148.95,148.92,22.32895632]
[1746667218332,6.71411306,148.94,148.92,22.32895632]
[1746667219127,29.04306938,148.94,148.9,26.0]
[1746667219305,29.04306938,148.94,148.9,22.32895632]
[1746667219533,45.82835204,148.94,148.89,22.32895632]
[1746667219709,22.32895632,148.91,148.87,22.32895632]
[1746667219922,155.24964886,148.93,148.88,22.32895632]
[1746667220115,136.6,148.93,148.9,22.32895632]
[1746667220504,6.71501477,148.92,148.9,22.32895632]
[1746667220826,6.71501477,148.92,148.86,26.0]
[1746667221010,29.04397109,148.92,148.88,22.32895632]
[1746667221212,6.71501477,148.92,148.89,22.32895632]
[1746667221408,143.31466314,148.93,148.9,22.32895632]
[1746667222328,143.31466314,148.93,148.87,26.0]
[1746667222538,143.31466314,148.93,148.9,22.32895632]
[1746667223208,136.6,148.93,148.91,22.32895632]
[1746667223415,136.6,148.93,148.92,22.32895632]
[1746667223623,136.6,148.96,148.92,22.32895632]
[1746667223940,22.32895632,148.93,148.87,26.0]
[1746667224131,22.32895632,148.91,148.87,48.32895632]
[1746667224303,158.92895632,148.92,148.88,22.32895632]
[1746667225032,6.71546571,148.91,148.89,22.32895632]
[1746667225740,136.6,148.92,148.9,22.32895632]
[1746667225910,136.6,148.92,148.91,22.32895632]
[1746667227930,6.7132116,148.96,148.91,22.32895632]
[1746667228233,6.7132116,148.96,148.93,22.32895632]
[1746667228810,6.7132116,148.96,148.9,6.7156261]
[1746667228811,6.7132116,148.96,148.94,22.32895632]
[1746667229330,143.31278513,148.97,148.95,22.32895632]
[1746667229632,143.31278513,148.97,148.96,22.32895632]
[1746667230022,143.31278513,148.97,148.94,22.32895632]
[1746667231237,143.31278513,148.97,148.95,22.32895632]
[1746667232246,143.31278513,148.97,148.9,32.71575437]
[1746667232545,143.31278513,148.97,148.93,22.32895632]